bitfinex/quotes_BTCUSD_20220120
["timestamp","ask_amount","ask_price","bid_price","bid_amount"]
[1642651114236,0.00135446,41954.0,41953.0,1.60282528]
[1642651114487,0.00020628,41954.0,41953.0,1.60282528]
[1642651115688,0.0011,41968.0,41956.0,0.059579]
[1642651115887,0.00459215,41962.0,41956.0,0.059579]
[1642651116088,0.00012034,41961.0,41957.0,0.059579]
[1642651116486,0.00010314,41960.0,41957.0,0.059579]
[1642651116687,0.00010314,41960.0,41958.0,0.384998]
[1642651116888,8.595e-05,41959.0,41958.0,0.434998]
[1642651117688,8.595e-05,41959.0,41958.0,0.384998]
[1642651117889,8.595e-05,41959.0,41958.0,0.395998]
[1642651118160,8.595e-05,41959.0,41958.0,0.93014807]
[1642651118360,8.595e-05,41959.0,41958.0,1.23679987]
[1642651118555,8.595e-05,41959.0,41958.0,1.05303987]
[1642651118754,8.595e-05,41959.0,41958.0,1.04638807]
[1642651119256,8.595e-05,41959.0,41958.0,1.03538807]
[1642651119455,8.595e-05,41959.0,41958.0,1.04728807]
[1642651119856,8.595e-05,41959.0,41958.0,1.06728807]
[1642651121255,8.595e-05,41959.0,41958.0,1.04728807]
[1642651121889,8.595e-05,41959.0,41958.0,1.06728807]
[1642651123091,8.595e-05,41959.0,41958.0,1.04728807]
[1642651123490,8.595e-05,41959.0,41958.0,1.03538807]
[1642651123891,8.595e-05,41959.0,41958.0,1.05638807]
[1642651125204,8.595e-05,41959.0,41958.0,1.03538807]
[1642651126038,8.595e-05,41959.0,41958.0,1.05638807]
[1642651127541,8.595e-05,41959.0,41958.0,0.74988511]
[1642651127741,8.595e-05,41959.0,41958.0,0.62888511]
[1642651127945,8.595e-05,41959.0,41958.0,0.64988511]
[1642651128242,8.595e-05,41959.0,41958.0,0.63364511]
[1642651129242,8.595e-05,41959.0,41958.0,0.61264511]
[1642651129885,8.595e-05,41959.0,41958.0,0.63064511]
[1642651130686,8.595e-05,41959.0,41958.0,0.402998]
[1642651130887,8.595e-05,41959.0,41958.0,0.018]
[1642651131486,8.595e-05,41959.0,41955.0,0.01624]
[1642651131886,6.876e-05,41958.0,41955.0,0.01624]
[1642651132186,0.00010314,41960.0,41955.0,0.03324]
[1642651132587,0.00123287,41959.0,41955.0,0.03324]
[1642651132987,6.876e-05,41958.0,41955.0,0.03324]
[1642651133238,6.876e-05,41958.0,41955.0,0.01624]
[1642651133441,6.876e-05,41958.0,41952.0,0.30264]
[1642651133644,6.876e-05,41958.0,41956.0,0.18161739]
[1642651134561,6.876e-05,41958.0,41952.0,0.31964]
[1642651134739,6.876e-05,41958.0,41953.0,0.384998]
[1642651135439,6.876e-05,41958.0,41952.0,0.03324]
[1642651135842,6.876e-05,41958.0,41953.0,0.384998]
[1642651136245,0.0011469,41957.0,41953.0,0.384998]
[1642651137199,6.876e-05,41958.0,41953.0,0.384998]
[1642651137396,0.0011469,41957.0,41953.0,0.384998]
[1642651137999,0.0011469,41957.0,41953.0,0.405998]
[1642651138400,6.876e-05,41958.0,41953.0,0.405998]
[1642651138600,0.0011469,41957.0,41953.0,0.405998]
[1642651139299,0.0011469,41957.0,41953.0,0.384998]
[1642651139701,6.876e-05,41958.0,41950.0,0.24]
[1642651139900,0.0011469,41957.0,41950.0,0.25624]
[1642651140099,0.0011469,41957.0,41953.0,0.019]
[1642651140299,6.876e-05,41958.0,41953.0,0.019]
[1642651140738,6.876e-05,41958.0,41953.0,0.38077398]
[1642651142038,6.876e-05,41958.0,41953.0,0.36977398]
[1642651142538,6.876e-05,41958.0,41953.0,0.008]
[1642651143342,6.876e-05,41958.0,41952.0,0.59848227]
[1642651143940,6.876e-05,41958.0,41952.0,0.60748227]
[1642651145190,6.876e-05,41958.0,41953.0,0.05959]
[1642651145992,6.876e-05,41958.0,41953.0,0.06859]
[1642651147192,6.876e-05,41958.0,41953.0,0.05959]
[1642651147591,6.876e-05,41958.0,41955.0,0.0999]
[1642651149949,6.876e-05,41958.0,41955.0,0.1049]
[1642651151453,6.876e-05,41958.0,41955.0,0.0999]
[1642651152094,6.876e-05,41958.0,41955.0,0.1009]
[1642651153292,6.876e-05,41958.0,41955.0,0.0999]
[1642651154092,6.876e-05,41958.0,41955.0,0.001]
[1642651155659,6.876e-05,41958.0,41952.0,0.23044479]
[1642651156059,6.876e-05,41958.0,41955.0,0.001]
[1642651156859,0.059577,41957.0,41955.0,0.001]
[1642651157457,0.059577,41957.0,41950.0,0.47095849]
[1642651157659,6.876e-05,41958.0,41950.0,0.45744119]
[1642651157858,0.04796876,41958.0,41951.0,0.18992304]
[1642651158061,6.876e-05,41958.0,41951.0,0.18992304]
[1642651158262,6.876e-05,41958.0,41951.0,0.20616304]
[1642651158459,6.876e-05,41958.0,41952.0,0.384998]
[1642651158661,6.876e-05,41958.0,41953.0,0.18700247]
[1642651158859,6.876e-05,41958.0,41954.0,0.35793256]
[1642651159059,6.876e-05,41958.0,41954.0,0.45793256]
[1642651159704,6.876e-05,41958.0,41954.0,0.51751556]
[1642651159901,6.876e-05,41958.0,41956.0,0.01624]
[1642651161404,6.876e-05,41958.0,41951.0,0.18992304]
[1642651161603,0.31265548,41956.0,41951.0,0.18992304]
[1642651161805,0.31265548,41956.0,41950.0,0.2264827]
[1642651162005,0.31265548,41956.0,41951.0,0.012]
[1642651162404,0.0479,41955.0,41951.0,0.012]
[1642651163352,0.0479,41955.0,41950.0,0.42041569]
[1642651164251,0.0479,41955.0,41950.0,0.43041569]
[1642651165452,0.0479,41955.0,41950.0,0.42041569]
[1642651166152,0.0479,41955.0,41950.0,0.43241569]
[1642651167392,0.0479,41955.0,41950.0,0.42041569]
[1642651167989,0.0479,41955.0,41950.0,0.43241569]
[1642651169190,0.66754362,41958.0,41950.0,0.43241569]
[1642651169191,0.05966259,41958.0,41950.0,0.43241569]
[1642651169393,0.05966259,41958.0,41950.0,0.42041569]
[1642651169998,0.66754362,41958.0,41950.0,0.42041569]
[1642651170191,0.66754362,41958.0,41950.0,0.42641569]
[1642651171451,3.29924584,41958.0,41950.0,0.42041569]
[1642651171652,0.086638,41957.0,41950.0,0.42041569]
[1642651172150,0.086638,41957.0,41950.0,0.42641569]
[1642651173250,0.086638,41957.0,41950.0,0.42041569]
[1642651174154,0.086638,41957.0,41950.0,0.42741569]
[1642651174796,3.24642888,41958.0,41950.0,0.42741569]
[1642651175005,0.61472666,41958.0,41950.0,0.42741569]
[1642651175697,0.60788103,41957.0,41950.0,0.42041569]
[1642651175897,0.60788103,41957.0,41950.0,0.2264827]
[1642651176097,0.60788103,41957.0,41950.0,0.2314827]
[1642651176496,0.0479,41956.0,41950.0,0.2314827]
[1642651177298,0.0479,41956.0,41950.0,0.2264827]
[1642651177498,1.81798413,41956.0,41950.0,0.2264827]
[1642651178240,1.81798413,41956.0,41950.0,0.2374827]
[1642651178445,0.0479,41956.0,41950.0,0.2374827]
[1642651179342,0.0479,41956.0,41950.0,0.2264827]
[1642651180041,0.0479,41956.0,41950.0,0.2374827]
[1642651181045,0.61472666,41958.0,41950.0,0.2374827]
[1642651181245,0.00684563,41958.0,41950.0,0.2374827]
[1642651181444,0.00684563,41958.0,41950.0,0.2264827]
[1642651182098,0.00684563,41958.0,41950.0,0.2950727]
[1642651183301,0.00684563,41958.0,41950.0,0.2860727]
[1642651184100,0.00684563,41958.0,41950.0,0.2314827]
[1642651185505,0.00684563,41958.0,41950.0,0.2264827]
[1642651186142,0.00684563,41958.0,41950.0,0.2434827]
[1642651187342,0.00684563,41958.0,41950.0,0.2264827]
[1642651188143,0.00684563,41958.0,41950.0,0.2344827]
[1642651188746,0.21561243,41957.0,41950.0,0.2344827]
[1642651188948,0.25610942,41954.0,41950.0,0.2344827]
[1642651189397,0.25610942,41954.0,41950.0,0.2264827]
[1642651189799,0.086638,41953.0,41950.0,0.2264827]
[1642651190098,0.086638,41953.0,41950.0,0.2374827]
[1642651190303,1.0,41951.0,41950.0,0.2374827]
[1642651190698,1.0,41951.0,41950.0,0.23755146]
[1642651191104,1.134538,41951.0,41950.0,0.23755146]
[1642651191600,1.134538,41951.0,41950.0,0.22655146]
[1642651191800,1.134538,41951.0,41950.0,0.22648088]
[1642651192200,1.139538,41951.0,41950.0,0.23548088]
[1642651193456,1.134538,41951.0,41950.0,0.22648088]
[1642651194260,1.134538,41951.0,41950.0,0.23648088]
[1642651194261,1.141538,41951.0,41950.0,0.23648088]
[1642651195453,1.134538,41951.0,41950.0,0.22648088]
[1642651196253,1.146538,41951.0,41950.0,0.22648088]
[1642651197496,1.134538,41951.0,41950.0,0.22648088]
[1642651198299,1.146538,41951.0,41950.0,0.22648088]
[1642651199499,1.134538,41951.0,41950.0,0.22648088]
[1642651200302,1.146538,41951.0,41950.0,0.22648088]
[1642651200852,1.0599,41951.0,41950.0,0.22648088]
[1642651201449,1.0479,41951.0,41950.0,0.22648088]
[1642651201851,1.0,41951.0,41950.0,0.46807657]
[1642651202253,1.0,41951.0,41950.0,0.5897996]
[1642651202451,1.0,41951.0,41950.0,1.34109368]
[1642651202648,1.01,41951.0,41950.0,1.73512168]
[1642651202852,6.876e-05,41958.0,41952.0,0.059577]
[1642651203052,6.876e-05,41958.0,41957.0,0.00126643]
[1642651203256,6.876e-05,41958.0,41957.0,1.57923803]
[1642651203451,6.876e-05,41958.0,41957.0,0.67977483]
[1642651203650,6.876e-05,41958.0,41957.0,0.77977483]
[1642651203958,6.876e-05,41958.0,41957.0,1.06878498]
[1642651204151,6.876e-05,41958.0,41957.0,1.28707528]
[1642651204397,6.876e-05,41958.0,41957.0,1.35854928]
[1642651204600,6.876e-05,41958.0,41957.0,1.37754928]
[1642651204996,6.876e-05,41958.0,41957.0,1.42754928]
[1642651205798,6.876e-05,41958.0,41957.0,1.40854928]
[1642651206198,6.876e-05,41958.0,41957.0,1.34770885]
[1642651206797,6.876e-05,41958.0,41957.0,1.36670885]
[1642651208256,6.876e-05,41958.0,41957.0,1.34770885]
[1642651208445,6.876e-05,41958.0,41957.0,1.59770885]
[1642651208648,6.876e-05,41958.0,41957.0,1.31770885]
[1642651208844,6.876e-05,41958.0,41957.0,1.31893761]
[1642651209248,6.876e-05,41958.0,41957.0,1.21893761]
[1642651209444,0.06567888,41958.0,41957.0,1.21893761]
[1642651210043,0.06567888,41958.0,41957.0,1.31893761]
[1642651210245,0.06567888,41958.0,41957.0,1.63504106]
[1642651210647,0.06567888,41958.0,41957.0,1.68504106]
[1642651211248,0.06567888,41958.0,41957.0,1.80674274]
[1642651211647,0.06567888,41958.0,41957.0,1.73504106]
[1642651212500,0.06567888,41958.0,41957.0,1.73604106]
[1642651212703,0.06567888,41958.0,41957.0,1.68604106]
[1642651213101,0.06567888,41958.0,41957.0,1.80774258]
[1642651213801,0.06567888,41958.0,41957.0,1.85774258]
[1642651214001,0.06567888,41958.0,41957.0,1.83674258]
[1642651214407,0.06567888,41958.0,41957.0,1.85874258]
[1642651214902,0.06567888,41958.0,41957.0,1.67704106]
[1642651215747,0.06567888,41958.0,41957.0,1.72704106]
[1642651215948,0.06567888,41958.0,41957.0,1.70504106]
[1642651216350,0.06567888,41958.0,41957.0,1.73004106]
[1642651217551,0.06567888,41958.0,41957.0,1.77553655]
[1642651217851,0.06567888,41958.0,41957.0,1.75053655]
[1642651218052,0.00110375,41960.0,41958.0,0.95]
[1642651218257,0.00110375,41960.0,41959.0,1.56423555]
[1642651218453,0.00441396,41970.0,41959.0,1.83511274]
[1642651218655,0.00441396,41970.0,41962.0,0.11912]
[1642651218857,0.0001891,41969.0,41968.0,0.00126759]
[1642651219055,0.0001891,41969.0,41968.0,0.49916759]
[1642651219255,0.00034381,41978.0,41968.0,0.88419559]
[1642651219499,0.00034381,41978.0,41975.0,0.21774542]
[1642651219693,0.00032662,41977.0,41975.0,0.21774542]
[1642651220094,0.00030943,41976.0,41975.0,0.21774542]
[1642651220493,0.00030943,41976.0,41975.0,0.22474542]
[1642651221494,0.00030943,41976.0,41975.0,0.22528222]
[1642651221894,0.00030943,41976.0,41975.0,0.21828222]
[1642651222396,2.0909139,41976.0,41975.0,0.0125368]
[1642651222896,2.1775519,41976.0,41975.0,0.0125368]
[1642651224151,0.08694743,41976.0,41975.0,0.0125368]
[1642651224352,0.00030943,41976.0,41975.0,0.0125368]
[1642651224551,0.00030943,41976.0,41975.0,0.0065368]
[1642651225953,0.08694743,41976.0,41975.0,0.0065368]
[1642651226901,0.08694743,41976.0,41975.0,0.0055368]
[1642651227100,0.08694743,41976.0,41975.0,0.2455368]
[1642651227503,0.00030943,41976.0,41975.0,0.2455368]
[1642651228704,0.00023956,41976.0,41975.0,0.2525368]
[1642651230746,0.00023956,41976.0,41975.0,0.2565368]
[1642651230947,0.00023956,41976.0,41975.0,0.2495368]
[1642651231147,0.00023956,41976.0,41975.0,0.2405368]
[1642651232658,0.08687756,41976.0,41975.0,0.2405368]
[1642651233051,0.93477756,41976.0,41975.0,0.2455368]
[1642651233250,1.303832,41976.0,41975.0,0.2455368]
[1642651233449,1.203832,41976.0,41975.0,0.2455368]
[1642651233648,1.03477756,41976.0,41975.0,0.2455368]
[1642651234510,0.25192856,41967.0,41963.0,0.00752712]
[1642651234704,0.25192856,41967.0,41964.0,0.385028]
[1642651234903,0.0479,41968.0,41964.0,0.385028]
[1642651234904,6.766e-05,41966.0,41964.0,0.385028]
[1642651235307,8.485e-05,41967.0,41964.0,0.385028]
[1642651235703,6.766e-05,41966.0,41964.0,0.385028]
[1642651236104,8.485e-05,41967.0,41964.0,0.385028]
[1642651236503,6.766e-05,41966.0,41964.0,0.385028]
[1642651236705,6.766e-05,41966.0,41964.0,0.625028]
[1642651236907,0.04902526,41968.0,41964.0,0.625028]
[1642651236908,8.485e-05,41967.0,41964.0,0.625028]
[1642651237109,8.485e-05,41967.0,41964.0,0.635028]
[1642651237110,0.01021011,41967.0,41964.0,0.635028]
[1642651237305,6.766e-05,41966.0,41964.0,0.635028]
[1642651237708,6.766e-05,41966.0,41964.0,0.25]
[1642651238248,6.766e-05,41966.0,41965.0,0.385028]
[1642651238849,6.766e-05,41966.0,41964.0,0.25]
[1642651239051,0.03506766,41966.0,41965.0,0.001]
[1642651240750,6.766e-05,41966.0,41964.0,0.24]
[1642651241149,0.01806766,41966.0,41965.0,0.004]
[1642651242697,6.766e-05,41966.0,41964.0,0.24]
[1642651243397,0.03106766,41966.0,41965.0,0.002]
[1642651244998,0.03106766,41966.0,41964.0,0.24]
[1642651245198,0.03706766,41966.0,41965.0,0.002]
[1642651246549,6.766e-05,41966.0,41964.0,0.24]
[1642651247247,0.04906766,41966.0,41965.0,0.001]
[1642651248848,0.04906766,41966.0,41964.0,0.24]
[1642651249046,6.766e-05,41966.0,41964.0,0.24]
[1642651249249,0.07506766,41966.0,41964.0,0.24]
[1642651249518,0.27458907,41965.0,41964.0,0.24]
[1642651249719,0.07506766,41966.0,41964.0,0.24]
[1642651250521,6.766e-05,41966.0,41964.0,0.24]
[1642651251225,0.02806766,41966.0,41964.0,0.242]
[1642651253251,0.02306766,41966.0,41964.0,0.243]
[1642651254547,0.02306766,41966.0,41964.0,0.24]
[1642651254746,6.766e-05,41966.0,41964.0,0.24]
[1642651255347,0.02206766,41966.0,41964.0,0.244]
[1642651256150,0.08165735,41966.0,41964.0,0.244]
[1642651256551,0.08165735,41966.0,41964.0,0.24392969]
[1642651256751,0.08165735,41966.0,41964.0,0.23992969]
[1642651256999,0.05965735,41966.0,41964.0,0.23992969]
[1642651257199,0.08065735,41966.0,41964.0,0.24392969]
[1642651257403,0.02106766,41966.0,41964.0,0.24392969]
[1642651258101,0.336638,41965.0,41964.0,0.24392969]
[1642651258300,0.384538,41965.0,41964.0,0.24392969]
[1642651258500,0.134538,41965.0,41964.0,0.24392969]
[1642651258904,0.134538,41965.0,41964.0,0.23992969]
[1642651259501,0.148538,41965.0,41964.0,0.23992969]
[1642651259903,0.398538,41965.0,41964.0,0.23992969]
[1642651260103,0.148538,41965.0,41964.0,0.23992969]
[1642651260503,0.14258066,41965.0,41964.0,0.23992969]
[1642651260753,0.0619,41965.0,41964.0,0.23992969]
[1642651261355,0.0479,41965.0,41964.0,0.23992969]
[1642651261659,0.0619,41965.0,41964.0,0.23992969]
[1642651263157,0.14259,41965.0,41964.0,0.23992969]
[1642651263456,0.15559,41965.0,41964.0,0.23992969]
[1642651263857,0.12859,41965.0,41964.0,0.23992969]
[1642651265304,0.14159,41965.0,41964.0,0.23992969]
[1642651265909,0.25,41964.0,41956.0,0.00096814]
[1642651266119,0.5992,41961.0,41956.0,0.00096814]
[1642651266308,0.5992,41961.0,41957.0,8.706e-05]
[1642651266309,0.44912671,41960.0,41957.0,8.706e-05]
[1642651266513,0.00125954,41958.0,41957.0,8.706e-05]
[1642651266707,1.75798954,41958.0,41957.0,8.706e-05]
[1642651266910,3.35556952,41958.0,41957.0,8.706e-05]
[1642651267106,3.35556952,41958.0,41955.0,0.00096823]
[1642651267107,0.85,41957.0,41955.0,0.00096823]
[1642651267405,1.71514698,41956.0,41955.0,0.00096823]
[1642651267606,1.76514698,41956.0,41955.0,0.00096823]
[1642651268157,1.76514698,41956.0,41948.0,0.00015471]
[1642651268360,0.00124987,41954.0,41953.0,0.00097886]
[1642651268566,0.77983987,41954.0,41953.0,0.00097886]
[1642651268760,1.08098977,41954.0,41953.0,0.00104762]
[1642651269362,1.09498977,41954.0,41953.0,6.876e-05]
[1642651269567,1.15460505,41954.0,41953.0,6.876e-05]
[1642651269762,1.15460505,41954.0,41951.0,0.00097893]
[1642651269964,1.15460505,41954.0,41952.0,8.595e-05]
[1642651270163,0.2784517,41953.0,41952.0,8.595e-05]
[1642651270464,0.4070417,41953.0,41952.0,8.595e-05]
[1642651270864,0.4070417,41953.0,41951.0,0.00097895]
[1642651271063,0.34240653,41952.0,41951.0,0.00097895]
[1642651271265,0.39030653,41952.0,41951.0,0.00097895]
[1642651271466,0.39030653,41952.0,41951.0,0.00108209]
[1642651271677,0.39030653,41952.0,41951.0,0.00010314]
[1642651271910,0.12859,41952.0,41951.0,0.00010314]
[1642651272115,0.12859,41952.0,41950.0,0.24182189]
[1642651272309,0.0479,41952.0,41950.0,0.24182189]
[1642651273410,0.0659,41952.0,41950.0,0.24182189]
[1642651273809,0.0659,41952.0,41949.0,0.00097556]
[1642651274011,0.0659,41952.0,41945.0,0.00123483]
[1642651274213,0.0659,41952.0,41950.0,0.00012033]
[1642651274410,0.0659,41952.0,41949.0,0.00097556]
[1642651274614,0.0659,41952.0,41950.0,0.00012033]
[1642651275511,0.0659,41952.0,41949.0,0.00097667]
[1642651275512,0.08069,41951.0,41949.0,0.00097667]
[1642651275953,0.006,41952.0,41950.0,0.00012033]
[1642651276153,0.08069,41951.0,41950.0,0.00012033]
[1642651276958,0.40097736,41951.0,41949.0,0.00013752]
[1642651277160,0.26829487,41950.0,41949.0,0.00013752]
[1642651277355,0.39688487,41950.0,41949.0,0.00013752]
[1642651277557,0.68636535,41950.0,41949.0,0.00013752]
[1642651277758,1.06292402,41950.0,41949.0,0.00013752]
[1642651278059,1.23847144,41950.0,41947.0,0.00097672]
[1642651278256,0.14031211,41949.0,41947.0,0.00097672]
[1642651278456,0.14031211,41949.0,41948.0,0.00015471]
[1642651278657,0.63821211,41949.0,41948.0,0.00015471]
[1642651279055,0.73821211,41949.0,41948.0,0.00015471]
[1642651279254,0.73821211,41949.0,41946.0,0.0009764]
[1642651279517,0.41218409,41948.0,41947.0,0.0001719]
[1642651279720,0.54077409,41948.0,41947.0,0.0001719]
[1642651279917,0.620948,41948.0,41947.0,0.0001719]
[1642651280116,0.20876391,41948.0,41947.0,0.0001719]
[1642651280517,0.20876391,41948.0,41945.0,0.00097643]
[1642651280722,0.36282065,41947.0,41946.0,0.00018909]
[1642651280918,0.41072065,41947.0,41946.0,0.00018909]
[1642651281520,0.4106559,41947.0,41946.0,0.00018909]
[1642651281718,0.4106559,41947.0,41944.0,0.00097647]
[1642651281918,0.4106559,41947.0,41945.0,0.00020628]
[1642651282120,0.26957105,41946.0,41945.0,0.00020628]
[1642651282424,0.39807205,41946.0,41945.0,0.00020628]
[1642651282919,0.39807205,41946.0,41944.0,0.00022347]
[1642651283174,0.35032874,41945.0,41944.0,0.00022347]
[1642651283375,0.39822874,41945.0,41944.0,0.00022347]
[1642651284078,0.39822874,41945.0,41942.0,0.00097664]
[1642651284280,0.24406299,41943.0,41942.0,0.00097664]
[1642651284476,0.29196299,41943.0,41942.0,0.00097664]
[1642651284676,0.29196299,41943.0,41942.0,0.00123449]
[1642651284886,0.29196299,41943.0,41942.0,0.00025785]
[1642651285081,0.37256399,41943.0,41942.0,0.00025785]
[1642651285276,0.37256399,41943.0,41940.0,0.00097672]
[1642651285477,0.31496299,41943.0,41941.0,0.00027504]
[1642651285880,0.080601,41942.0,41941.0,0.00027504]
[1642651286077,0.0479,41942.0,41941.0,0.00027504]
[1642651286480,0.0479,41942.0,41940.0,0.00097669]
[1642651286697,0.0479,41942.0,41941.0,0.00027504]
[1642651287504,0.0679,41942.0,41941.0,0.00027504]
[1642651287708,0.0679,41942.0,41939.0,0.00097671]
[1642651287904,0.0679,41942.0,41940.0,0.00029223]
[1642651288603,1.9466871,41941.0,41940.0,0.00029223]
[1642651288804,0.0679,41942.0,41939.0,0.00097672]
[1642651289005,0.0679,41942.0,41940.0,0.00029223]
[1642651289805,0.0769,41942.0,41940.0,0.00029223]
[1642651290005,0.0769,41942.0,41939.0,0.00097673]
[1642651290210,0.0769,41942.0,41940.0,0.00029223]
[1642651291255,0.0569,41942.0,41939.0,0.00097673]
[1642651291453,0.0569,41942.0,41940.0,0.00029223]
[1642651291652,0.0669,41942.0,41940.0,0.00029223]
[1642651292454,0.0669,41942.0,41939.0,0.00097673]
[1642651292655,0.0669,41942.0,41940.0,0.00029223]
[1642651293655,0.0419,41942.0,41939.0,0.00097672]
[1642651293854,0.0419,41942.0,41940.0,0.00029223]
[1642651293855,0.0409,41942.0,41940.0,0.00029223]
[1642651294903,0.0409,41942.0,41939.0,0.00097672]
[1642651295103,0.0409,41942.0,41940.0,0.00029223]
[1642651295305,0.0229,41942.0,41940.0,0.00029223]
[1642651295514,0.0319,41942.0,41940.0,0.00029223]
[1642651296104,0.0319,41942.0,41939.0,0.00097672]
[1642651296305,0.0319,41942.0,41940.0,0.00029223]
[1642651297607,0.0229,41942.0,41940.0,0.00029223]
[1642651297806,0.0289,41942.0,41940.0,0.00029223]
[1642651298011,0.006,41942.0,41940.0,0.00029223]
[1642651298455,0.006,41942.0,41939.0,0.00097672]
[1642651298677,0.006,41942.0,41940.0,0.00029223]
[1642651299258,0.34208695,41947.0,41940.0,0.00029223]
[1642651299457,0.18786469,41945.0,41940.0,0.00029223]
[1642651299659,0.18786469,41945.0,41939.0,0.00097672]
[1642651299857,0.006,41942.0,41940.0,0.00029223]
[1642651300859,0.006,41942.0,41939.0,0.00097672]
[1642651301057,0.006,41942.0,41940.0,0.00029223]
[1642651301259,0.35378112,41947.0,41940.0,0.00029223]
[1642651301460,0.080601,41946.0,41942.0,0.33628304]
[1642651301660,0.0979,41947.0,41942.0,0.33628304]
[1642651301901,0.080601,41946.0,41943.0,0.00024066]
[1642651302902,0.33237843,41946.0,41943.0,0.00024066]
[1642651303307,0.33237843,41946.0,41942.0,0.0009766]
[1642651303503,0.33237843,41946.0,41943.0,0.00024066]
[1642651303702,0.098601,41946.0,41943.0,0.00024066]
[1642651304503,0.098601,41946.0,41942.0,0.00097661]
[1642651304705,0.098601,41946.0,41943.0,0.00024066]
[1642651305005,0.148601,41946.0,41943.0,0.00024066]
[1642651305655,0.148601,41946.0,41942.0,0.00097661]
[1642651305862,0.27261915,41943.0,41942.0,0.00097661]
[1642651306255,0.32261915,41943.0,41942.0,0.00097661]
[1642651306457,0.32261915,41943.0,41938.0,0.2986223]
[1642651306659,0.32261915,41943.0,41940.0,0.00097668]
[1642651307556,1.92782234,41942.0,41940.0,0.00097668]
[1642651307757,1.92782234,41942.0,41939.0,0.00030942]
[1642651307958,1.92782234,41942.0,41939.0,0.00128614]
[1642651308362,1.92782234,41942.0,41940.0,0.00029223]
[1642651310001,1.94582234,41942.0,41940.0,0.00029223]
[1642651310400,0.018,41942.0,41940.0,0.00029223]
[1642651311500,0.27261915,41943.0,41940.0,0.00029223]
[1642651312100,0.03,41942.0,41940.0,0.00029223]
[1642651313761,2.01534308,41943.0,41940.0,0.00029223]
[1642651313964,0.019,41942.0,41940.0,0.00029223]
[1642651314361,0.080601,41941.0,41940.0,0.00029223]
[1642651314565,0.38546505,41941.0,41940.0,0.00029223]
[1642651314962,0.43546505,41941.0,41940.0,0.00029223]
[1642651315462,0.72194925,41941.0,41938.0,0.00097674]
[1642651315962,0.67194925,41941.0,41938.0,0.00097674]
[1642651316165,0.68494925,41941.0,41934.0,0.00039537]
[1642651316361,0.68494925,41941.0,41937.0,0.00097678]
[1642651316662,0.68494925,41941.0,41938.0,0.00032661]
[1642651316905,0.39846505,41941.0,41938.0,0.00032661]
[1642651317105,0.45809255,41941.0,41938.0,0.00032661]
[1642651317607,0.44509255,41941.0,41937.0,0.00097678]
[1642651318007,0.45809255,41941.0,41938.0,0.00032661]
[1642651319008,0.45809255,41941.0,41937.0,0.00097677]
[1642651319316,0.45809255,41941.0,41938.0,0.00032661]
[1642651320107,0.44509255,41941.0,41937.0,0.00097677]
[1642651320309,0.45909255,41941.0,41938.0,0.00032661]
[1642651320958,0.39946505,41941.0,41938.0,0.00032661]
[1642651321259,0.39946505,41941.0,41933.0,0.573395]
[1642651321260,0.39946505,41941.0,41937.0,0.00097677]
[1642651321660,0.38546505,41941.0,41938.0,0.00032661]
[1642651322260,0.39946505,41941.0,41938.0,0.00032661]
[1642651322461,0.39946505,41941.0,41937.0,0.00097677]
[1642651322660,0.39946505,41941.0,41938.0,0.00032661]
[1642651323662,0.39946505,41941.0,41937.0,0.00097677]
[1642651323862,0.39946505,41941.0,41938.0,0.00032661]
[1642651324067,0.38546505,41941.0,41938.0,0.00032661]
[1642651324261,0.39846505,41941.0,41938.0,0.00032661]
[1642651324911,0.39846505,41941.0,41937.0,0.00097677]
[1642651325123,0.141501,41941.0,41938.0,0.00032661]
[1642651325707,0.128501,41941.0,41938.0,0.00032661]
[1642651326107,0.128501,41941.0,41937.0,0.00097677]
[1642651326308,0.140501,41941.0,41938.0,0.00032661]
[1642651326509,0.140501,41941.0,41938.0,0.00025905]
[1642651326715,0.20013137,41941.0,41938.0,0.00025905]
[1642651328361,0.20113137,41941.0,41938.0,0.00025905]
[1642651328560,0.20113137,41941.0,41937.0,0.00097677]
[1642651328762,0.20113137,41941.0,41938.0,0.00025905]
[1642651329064,0.141501,41941.0,41938.0,0.00025905]
[1642651329663,0.141501,41941.0,41937.0,0.00097677]
[1642651329860,0.141501,41941.0,41938.0,0.00025905]
[1642651330463,0.154501,41941.0,41938.0,0.00025905]
[1642651331360,0.128501,41941.0,41938.0,0.00025905]
[1642651332208,0.128501,41941.0,41937.0,0.00097677]
[1642651332404,0.128501,41941.0,41938.0,0.00025905]
[1642651332603,0.141501,41941.0,41938.0,0.00025905]
[1642651333906,0.128501,41941.0,41938.0,0.00025905]
[1642651334510,0.140501,41941.0,41937.0,0.00097677]
[1642651334804,0.140501,41941.0,41938.0,0.00025905]
[1642651335758,0.140501,41941.0,41937.0,0.00097677]
[1642651335959,0.140501,41941.0,41938.0,0.00025905]
[1642651336163,0.128501,41941.0,41938.0,0.00025905]
[1642651336359,0.140501,41941.0,41938.0,0.00025905]
[1642651336962,0.140501,41941.0,41937.0,0.00097677]
[1642651337168,0.140501,41941.0,41938.0,0.00025905]
[1642651337767,0.128501,41941.0,41938.0,0.00025905]
[1642651338163,0.128501,41941.0,41937.0,0.00097677]
[1642651338365,0.128501,41941.0,41938.0,0.00025905]
[1642651338565,0.142501,41941.0,41938.0,0.00025905]
[1642651338965,0.142501,41941.0,41939.0,0.28952046]
[1642651339409,0.142501,41941.0,41940.0,0.00022467]
[1642651339914,0.128501,41941.0,41940.0,0.00022467]
[1642651340510,0.141501,41941.0,41940.0,0.00022467]
[1642651341113,0.141501,41941.0,41939.0,0.00024186]
[1642651341712,0.128501,41941.0,41938.0,0.00097674]
[1642651341916,0.128501,41941.0,41939.0,0.00024186]
[1642651342614,0.141501,41941.0,41939.0,0.00024186]
[1642651343014,0.141501,41941.0,41938.0,0.0012358]
[1642651343272,0.141501,41941.0,41939.0,0.00024186]
[1642651344061,0.141501,41941.0,41938.0,0.00123581]
[1642651344062,0.128501,41941.0,41938.0,0.00123581]
[1642651344265,0.128501,41941.0,41939.0,0.00024186]
[1642651344865,0.139501,41941.0,41939.0,0.00024186]
[1642651345263,0.139501,41941.0,41938.0,0.00123581]
[1642651345464,0.139501,41941.0,41939.0,0.00024186]
[1642651346563,0.128501,41941.0,41939.0,0.00024186]
[1642651346763,0.139501,41941.0,41939.0,0.00024186]
[1642651347619,0.13943294,41941.0,41939.0,0.00024186]
[1642651347817,0.13943294,41941.0,41938.0,0.00097676]
[1642651348016,0.13943294,41941.0,41939.0,0.00024186]
[1642651348415,0.12843294,41941.0,41939.0,0.00024186]
[1642651349015,0.12843294,41941.0,41938.0,0.00097676]
[1642651349016,0.14243294,41941.0,41938.0,0.00097676]
[1642651349215,0.09453294,41941.0,41939.0,0.00024186]
[1642651349816,0.014,41941.0,41939.0,0.00024186]
[1642651350221,0.014,41941.0,41938.0,0.00097676]
[1642651350417,0.014,41941.0,41939.0,0.00024186]